[Event "*** Titled Tuesday 3|2 Blitz"]
[Site "Chess.com"]
[Date "2016.09.06"]
[Round "1"]
[White "AnastasiaProtopopova"]
[Black "VMikhalevski"]
[Result "0-1"]
[WhiteElo "2059"]
[BlackElo "2436"]
[TimeControl "180+2"]
[EndTime "11:12:27 PDT"]
[Termination "VMikhalevski won on time"]

1. d4 {[%clk 0:03:00.1]} 1... Nf6 {[%clk 0:03:00.1]} 2. c4 {[%clk 0:02:58.5]}
2... g6 {[%clk 0:03:01.5]} 3. Nc3 {[%clk 0:02:58.7]} 3... d5 {[%clk 0:03:03.1]}
4. Bf4 {[%clk 0:02:58.8]} 4... Bg7 {[%clk 0:03:03.3]} 5. e3 {[%clk 0:02:59.4]}
5... O-O {[%clk 0:03:02]} 6. Rc1 {[%clk 0:02:59.8]} 6... c6 {[%clk 0:03:01.4]}
7. cxd5 {[%clk 0:02:57.9]} 7... Nxd5 {[%clk 0:02:59.2]} 8. Bg3 {[%clk
0:02:26.6]} 8... Qa5 {[%clk 0:02:39.6]} 9. Qd2 {[%clk 0:02:24.2]} 9... Rd8
{[%clk 0:02:28.7]} 10. Nxd5 {[%clk 0:02:03.5]} 10... Qxd2+ {[%clk 0:02:27.5]}
11. Kxd2 {[%clk 0:02:02.6]} 11... Rxd5 {[%clk 0:02:29.2]} 12. Bc4 {[%clk
0:02:00.1]} 12... Rd8 {[%clk 0:02:30.8]} 13. Nf3 {[%clk 0:01:56.7]} 13... Nd7
{[%clk 0:02:27.6]} 14. Ng5 {[%clk 0:01:50.1]} 14... e6 {[%clk 0:02:21.5]} 15.
Bc7 {[%clk 0:01:47.7]} 15... Re8 {[%clk 0:02:20.8]} 16. Ne4 {[%clk 0:01:47.4]}
16... Nb6 {[%clk 0:02:20.7]} 17. Bb3 {[%clk 0:01:45.2]} 17... Nd5 {[%clk
0:02:05.7]} 18. Bg3 {[%clk 0:01:31.3]} 18... f5 {[%clk 0:01:57.9]} 19. Nd6
{[%clk 0:01:29.5]} 19... Rd8 {[%clk 0:01:58.1]} 20. Nxc8 {[%clk 0:01:26.3]}
20... Raxc8 {[%clk 0:01:58.1]} 21. Ke2 {[%clk 0:01:15.8]} 21... g5 {[%clk
0:01:51.6]} 22. h4 {[%clk 0:00:56.3]} 22... g4 {[%clk 0:01:51.5]} 23. f3 {[%clk
0:00:52.4]} 23... gxf3+ {[%clk 0:01:51]} 24. gxf3 {[%clk 0:00:53]} 24... Kf7
{[%clk 0:01:47.6]} 25. Bf2 {[%clk 0:00:50.8]} 25... Bh6 {[%clk 0:01:41.1]} 26.
Rcg1 {[%clk 0:00:45.4]} 26... Rg8 {[%clk 0:01:30.6]} 27. Rxg8 {[%clk 0:00:34.6]}
27... Rxg8 {[%clk 0:01:32]} 28. Rg1 {[%clk 0:00:35.7]} 28... Re8 {[%clk
0:01:26.3]} 29. Bc2 {[%clk 0:00:17.1]} 29... Kf6 {[%clk 0:01:19.7]} 30. h5
{[%clk 0:00:17.1]} 30... Bg5 {[%clk 0:01:18.2]} 31. e4 {[%clk 0:00:11.4]} 31...
Nf4+ {[%clk 0:01:17.5]} 32. Kf1 {[%clk 0:00:08.8]} 32... h6 {[%clk 0:01:10.9]}
33. e5+ {[%clk 0:00:03.6]} 33... Kf7 {[%clk 0:01:11.2]} 34. Rh1 {[%clk
0:00:03.9]} 34... Rd8 {[%clk 0:01:09.2]} 35. Be3 {[%clk 0:00:04.4]} 35... Nh3
{[%clk 0:01:06.8]} 36. Bxg5 {[%clk 0:00:04.2]} 36... Nxg5 {[%clk 0:01:07.6]} 37.
f4 {[%clk 0:00:05.2]} 37... Nf3 {[%clk 0:01:07.8]} 38. Kf2 {[%clk 0:00:05.8]}
38... Nxd4 {[%clk 0:01:07.8]} 39. Bd3 {[%clk 0:00:07.4]} 39... Rg8 {[%clk
0:01:04.3]} 40. Rc1 {[%clk 0:00:06.2]} 40... b6 {[%clk 0:00:56.1]} 41. Ke3
{[%clk 0:00:05.8]} 41... c5 {[%clk 0:00:55.9]} 42. b4 {[%clk 0:00:04.9]} 42...
Rg3+ {[%clk 0:00:56.7]} 43. Kd2 {[%clk 0:00:05.5]} 43... Rg2+ {[%clk 0:00:50.1]}
44. Ke3 {[%clk 0:00:05.5]} 44... Rg3+ {[%clk 0:00:46.7]} 45. Kd2 {[%clk
0:00:05.7]} 45... cxb4 {[%clk 0:00:44.9]} 46. Rc7+ {[%clk 0:00:04.9]} 46... Kf8
{[%clk 0:00:46.4]} 47. Rxa7 {[%clk 0:00:05.6]} 47... Rf3 {[%clk 0:00:40.9]} 48.
Rd7 {[%clk 0:00:05.3]} 48... Nc6 {[%clk 0:00:30.3]} 49. Rd6 {[%clk 0:00:06.3]}
49... Ne7 {[%clk 0:00:31]} 50. Rxe6 {[%clk 0:00:07.1]} 50... Rxf4 {[%clk
0:00:28.3]} 51. Rxh6 {[%clk 0:00:07.9]} 51... Nd5 {[%clk 0:00:25.6]} 52. Rd6
{[%clk 0:00:07.2]} 52... Rd4 {[%clk 0:00:26.5]} 53. Kc2 {[%clk 0:00:05.4]} 53...
f4 {[%clk 0:00:20.7]} 54. Bg6 {[%clk 0:00:05]} 54... Kg7 {[%clk 0:00:20.7]} 55.
Rd7+ {[%clk 0:00:05.8]} 55... Kh6 {[%clk 0:00:21.3]} 56. Rh7+ {[%clk 0:00:06.5]}
56... Kg5 {[%clk 0:00:22.3]} 57. e6 {[%clk 0:00:07.3]} 57... f3 {[%clk
0:00:20.5]} 58. e7 {[%clk 0:00:07.3]} 58... Nf6 {[%clk 0:00:19.2]} 59. Rf7
{[%clk 0:00:06.1]} 59... Rc4+ {[%clk 0:00:18.9]} 60. Kb3 {[%clk 0:00:06.3]}
60... Rc3+ {[%clk 0:00:16.7]} 61. Kxb4 {[%clk 0:00:07.3]} 61... Nd5+ {[%clk
0:00:15.8]} 62. Kb5 {[%clk 0:00:07.3]} 62... Re3 {[%clk 0:00:05.6]} 63. Rf5+
{[%clk 0:00:04.6]} 63... Kg4 {[%clk 0:00:05.3]} 64. Rxd5 {[%clk 0:00:05.1]}
64... Rxe7 {[%clk 0:00:06.9]} 65. h6 {[%clk 0:00:03.9]} 65... f2 {[%clk
0:00:07.5]} 66. Rd1 {[%clk 0:00:03.7]} 66... Re1 {[%clk 0:00:07.5]} 67. h7
{[%clk 0:00:03.9]} 67... Rxd1 {[%clk 0:00:07.7]} 68. h8=Q {[%clk 0:00:04]} 68...
f1=Q+ {[%clk 0:00:08.3]} 69. Kxb6 {[%clk 0:00:04.5]} 69... Qf2+ {[%clk
0:00:09.1]} 70. Kb7 {[%clk 0:00:05.2]} 70... Qf3+ {[%clk 0:00:09.6]} 71. Kb8
{[%clk 0:00:04.8]} 71... Qf4+ {[%clk 0:00:08.8]} 72. Kb7 {[%clk 0:00:04.9]}
72... Qb4+ {[%clk 0:00:09.4]} 73. Ka8 {[%clk 0:00:03.6]} 73... Qa5+ {[%clk
0:00:09.2]} 74. Kb8 {[%clk 0:00:03.1]} 74... Rd8+ {[%clk 0:00:08]} 0-1

[Event "*** Titled Tuesday 3|2 Blitz"]
[Site "Chess.com"]
[Date "2016.09.06"]
[Round "1"]
[White "ftorodent"]
[Black "macko06"]
[Result "1/2-1/2"]
[WhiteElo "2470"]
[BlackElo "2180"]
[TimeControl "180+2"]
[EndTime "11:13:39 PDT"]
[Termination "Game drawn - insufficient material"]

1. d4 {[%clk 0:03:01.6]} 1... Nf6 {[%clk 0:02:59.1]} 2. c4 {[%clk 0:03:02.6]}
2... e6 {[%clk 0:02:59.5]} 3. Nf3 {[%clk 0:03:03.3]} 3... b6 {[%clk 0:03:00.2]}
4. g3 {[%clk 0:03:02.4]} 4... Ba6 {[%clk 0:03:00.2]} 5. Qb3 {[%clk 0:03:03.5]}
5... Bb7 {[%clk 0:02:58.6]} 6. Bg2 {[%clk 0:03:03.3]} 6... Be7 {[%clk
0:02:59.3]} 7. O-O {[%clk 0:03:03.6]} 7... O-O {[%clk 0:03:00.2]} 8. Re1 {[%clk
0:03:03.2]} 8... d5 {[%clk 0:02:58]} 9. cxd5 {[%clk 0:02:54.6]} 9... Bxd5 {[%clk
0:02:58.4]} 10. Qc2 {[%clk 0:02:55.1]} 10... Nbd7 {[%clk 0:02:57]} 11. Nc3
{[%clk 0:02:51.8]} 11... Bb7 {[%clk 0:02:56.6]} 12. e4 {[%clk 0:02:51.9]} 12...
c5 {[%clk 0:02:57.1]} 13. Be3 {[%clk 0:01:50.5]} 13... cxd4 {[%clk 0:02:56.2]}
14. Nxd4 {[%clk 0:01:51.5]} 14... Bc5 {[%clk 0:02:48.4]} 15. Rad1 {[%clk
0:01:37.4]} 15... Qe7 {[%clk 0:02:45.6]} 16. Bg5 {[%clk 0:01:26.9]} 16... h6
{[%clk 0:02:41.6]} 17. Bxf6 {[%clk 0:01:26.6]} 17... Nxf6 {[%clk 0:02:39.3]} 18.
e5 {[%clk 0:01:27.7]} 18... Nh7 {[%clk 0:02:19.2]} 19. Bxb7 {[%clk 0:01:21.4]}
19... Qxb7 {[%clk 0:02:19.8]} 20. Qe4 {[%clk 0:01:20.7]} 20... Rab8 {[%clk
0:02:06.9]} 21. Qxb7 {[%clk 0:01:18.5]} 21... Rxb7 {[%clk 0:02:08]} 22. h4
{[%clk 0:01:19.4]} 22... Rd8 {[%clk 0:01:53.5]} 23. Nb3 {[%clk 0:01:20]} 23...
Rxd1 {[%clk 0:01:31.2]} 24. Rxd1 {[%clk 0:01:20.4]} 24... Be7 {[%clk 0:01:30]}
25. Ne4 {[%clk 0:01:13.9]} 25... Nf8 {[%clk 0:01:28.8]} 26. Rc1 {[%clk
0:01:14.9]} 26... f6 {[%clk 0:01:17]} 27. exf6 {[%clk 0:01:10.2]} 27... gxf6
{[%clk 0:01:18.9]} 28. Rc8 {[%clk 0:01:11]} 28... Kf7 {[%clk 0:01:17.8]} 29. Nd4
{[%clk 0:01:08.3]} 29... f5 {[%clk 0:01:06.3]} 30. Nc3 {[%clk 0:01:08.3]} 30...
Bf6 {[%clk 0:01:02]} 31. Nc6 {[%clk 0:01:09.4]} 31... Rd7 {[%clk 0:00:59.5]} 32.
Ra8 {[%clk 0:01:08.2]} 32... a5 {[%clk 0:00:54.3]} 33. Rb8 {[%clk 0:01:02.2]}
33... Rd2 {[%clk 0:00:37.7]} 34. Rb7+ {[%clk 0:00:57.1]} 34... Kg6 {[%clk
0:00:32.8]} 35. Na4 {[%clk 0:00:38.2]} 35... Bxb2 {[%clk 0:00:28.8]} 36. Rxb6
{[%clk 0:00:38.8]} 36... Bf6 {[%clk 0:00:25.1]} 37. a3 {[%clk 0:00:38.2]} 37...
Ra2 {[%clk 0:00:24.4]} 38. Rb3 {[%clk 0:00:38.9]} 38... Nd7 {[%clk 0:00:19.3]}
39. Nc3 {[%clk 0:00:38.1]} 39... Rc2 {[%clk 0:00:17.4]} 40. Nxa5 {[%clk
0:00:23.6]} 40... Rxc3 {[%clk 0:00:18.7]} 41. Rxc3 {[%clk 0:00:23.9]} 41... Bxc3
{[%clk 0:00:19.2]} 42. Nc6 {[%clk 0:00:25.6]} 42... Nc5 {[%clk 0:00:16.4]} 43.
f3 {[%clk 0:00:21.3]} 43... Kf7 {[%clk 0:00:16.1]} 44. g4 {[%clk 0:00:21.9]}
44... Ke8 {[%clk 0:00:15.4]} 45. gxf5 {[%clk 0:00:16.5]} 45... exf5 {[%clk
0:00:16.1]} 46. Kg2 {[%clk 0:00:12.1]} 46... Kd7 {[%clk 0:00:17]} 47. Na7 {[%clk
0:00:13.3]} 47... Ke6 {[%clk 0:00:12]} 48. Kf2 {[%clk 0:00:12.4]} 48... Ke5
{[%clk 0:00:11.4]} 49. Nc6+ {[%clk 0:00:12.9]} 49... Kf4 {[%clk 0:00:10.8]} 50.
Nd8 {[%clk 0:00:14.2]} 50... Bd4+ {[%clk 0:00:10.2]} 51. Ke2 {[%clk 0:00:14.7]}
51... Kg3 {[%clk 0:00:11.6]} 52. Nf7 {[%clk 0:00:13.3]} 52... h5 {[%clk
0:00:10]} 53. Nd6 {[%clk 0:00:14]} 53... f4 {[%clk 0:00:07.8]} 54. Nf5+ {[%clk
0:00:14.5]} 54... Kh3 {[%clk 0:00:05.7]} 55. Nxd4 {[%clk 0:00:15.4]} 55... Kxh4
{[%clk 0:00:07]} 56. Kf2 {[%clk 0:00:15.1]} 56... Kg5 {[%clk 0:00:06.6]} 57. Ne2
{[%clk 0:00:16]} 57... Kf5 {[%clk 0:00:06.4]} 58. Nc3 {[%clk 0:00:16.8]} 58...
Ke5 {[%clk 0:00:03.8]} 59. Kg2 {[%clk 0:00:10.2]} 59... Kd4 {[%clk 0:00:04.9]}
60. Nb5+ {[%clk 0:00:11.5]} 60... Ke3 {[%clk 0:00:05.2]} 61. Nc7 {[%clk
0:00:11.5]} 61... Kd4 {[%clk 0:00:04.9]} 62. Ne8 {[%clk 0:00:11.1]} 62... Ke5
{[%clk 0:00:05.6]} 63. Nc7 {[%clk 0:00:11.8]} 63... Kf5 {[%clk 0:00:04]} 64. Nb5
{[%clk 0:00:10.9]} 64... Ke5 {[%clk 0:00:03.9]} 65. Na7 {[%clk 0:00:11.3]} 65...
Kd4 {[%clk 0:00:04.8]} 66. Nc6+ {[%clk 0:00:11.4]} 66... Ke3 {[%clk 0:00:03.7]}
67. Ne7 {[%clk 0:00:12.5]} 67... Nd3 {[%clk 0:00:03]} 68. Nf5+ {[%clk
0:00:10.6]} 68... Ke2 {[%clk 0:00:04.3]} 69. Nd4+ {[%clk 0:00:11.4]} 69... Ke3
{[%clk 0:00:05.1]} 70. Nc2+ {[%clk 0:00:12.4]} 70... Ke2 {[%clk 0:00:06.5]} 71.
Nb4 {[%clk 0:00:13.6]} 71... Ne1+ {[%clk 0:00:07.5]} 72. Kh3 {[%clk 0:00:14.6]}
72... Nxf3 {[%clk 0:00:09.1]} 73. a4 {[%clk 0:00:16]} 73... Nd4 {[%clk
0:00:09.5]} 74. Nd5 {[%clk 0:00:15]} 74... f3 {[%clk 0:00:10.4]} 75. Nf4+ {[%clk
0:00:16]} 75... Ke3 {[%clk 0:00:11.4]} 76. Nxh5 {[%clk 0:00:16.6]} 76... f2
{[%clk 0:00:12.9]} 77. Ng3 {[%clk 0:00:17.8]} 77... Kf3 {[%clk 0:00:09.9]} 78.
a5 {[%clk 0:00:16.5]} 78... Ne2 {[%clk 0:00:10.1]} 79. Nf1 {[%clk 0:00:16.6]}
79... Nf4+ {[%clk 0:00:09.8]} 80. Kh2 {[%clk 0:00:17.8]} 80... Ke2 {[%clk
0:00:10.5]} 81. Ng3+ {[%clk 0:00:18.6]} 81... Ke1 {[%clk 0:00:09.1]} 82. a6
{[%clk 0:00:19.9]} 82... Ne2 {[%clk 0:00:05.8]} 83. a7 {[%clk 0:00:17.3]} 83...
Nxg3 {[%clk 0:00:06.4]} 84. a8=Q {[%clk 0:00:17.3]} 84... f1=Q {[%clk
0:00:07.8]} 85. Qa1+ {[%clk 0:00:17.4]} 85... Kf2 {[%clk 0:00:06.8]} 86. Qxf1+
{[%clk 0:00:18]} 86... Nxf1+ {[%clk 0:00:05.8]} 1/2-1/2

[Event "*** Titled Tuesday 3|2 Blitz"]
[Site "Chess.com"]
[Date "2016.09.06"]
[Round "2"]
[White "popov_m"]
[Black "chorejason"]
[Result "1-0"]
[WhiteElo "2142"]
[BlackElo "2028"]
[TimeControl "180+2"]
[EndTime "11:16:41 PDT"]
[Termination "popov_m won by resignation"]

1. Nf3 {[%clk 0:03:01.9]} 1... Nf6 {[%clk 0:03:00.8]} 2. c4 {[%clk 0:02:55]}
2... g6 {[%clk 0:03:02]} 3. Nc3 {[%clk 0:02:55.3]} 3... Bg7 {[%clk 0:03:03.9]}
4. e4 {[%clk 0:02:56.3]} 4... O-O {[%clk 0:03:05.5]} 5. d4 {[%clk 0:02:57.1]}
5... d6 {[%clk 0:03:06.9]} 6. Be2 {[%clk 0:02:58]} 6... e5 {[%clk 0:03:08.5]} 7.
O-O {[%clk 0:02:58.7]} 7... Nc6 {[%clk 0:03:09.8]} 8. d5 {[%clk 0:03:00.1]} 8...
Ne7 {[%clk 0:03:11.7]} 9. Ne1 {[%clk 0:03:00.9]} 9... Nd7 {[%clk 0:03:12.8]} 10.
f3 {[%clk 0:03:01.1]} 10... f5 {[%clk 0:03:13.9]} 11. g4 {[%clk 0:03:02.5]}
11... Nf6 {[%clk 0:03:03.4]} 12. h4 {[%clk 0:02:56]} 12... fxg4 {[%clk
0:02:58.4]} 13. fxg4 {[%clk 0:02:55.9]} 13... h5 {[%clk 0:02:59.8]} 14. g5
{[%clk 0:02:47]} 14... Ng4 {[%clk 0:03:00]} 15. Rxf8+ {[%clk 0:02:45.8]} 15...
Qxf8 {[%clk 0:03:00.7]} 16. Nf3 {[%clk 0:02:46.1]} 16... c6 {[%clk 0:02:49.1]}
17. Bd2 {[%clk 0:02:44.4]} 17... Qd8 {[%clk 0:02:46.6]} 18. Qb3 {[%clk
0:02:43.2]} 18... b5 {[%clk 0:02:45.3]} 19. dxc6 {[%clk 0:02:09.9]} 19... Qb6+
{[%clk 0:02:45.1]} 20. c5+ {[%clk 0:02:11.1]} 1-0

[Event "*** Titled Tuesday 3|2 Blitz"]
[Site "Chess.com"]
[Date "2016.09.06"]
[Round "2"]
[White "Yaacovn"]
[Black "Iuri_Shkuro"]
[Result "0-1"]
[WhiteElo "2651"]
[BlackElo "2494"]
[TimeControl "180+2"]
[EndTime "11:17:33 PDT"]
[Termination "Iuri_Shkuro won by resignation"]

1. d4 {[%clk 0:02:45.4]} 1... Nc6 {[%clk 0:02:56.7]} 2. Nf3 {[%clk 0:02:46.3]}
2... d6 {[%clk 0:02:57.5]} 3. d5 {[%clk 0:02:46.9]} 3... Nb8 {[%clk 0:02:57.3]}
4. e4 {[%clk 0:02:45.9]} 4... Nf6 {[%clk 0:02:58.7]} 5. Nc3 {[%clk 0:02:46]}
5... g6 {[%clk 0:03:00]} 6. h3 {[%clk 0:02:46.3]} 6... Bg7 {[%clk 0:03:01.3]} 7.
Be2 {[%clk 0:02:47.7]} 7... O-O {[%clk 0:03:02.6]} 8. O-O {[%clk 0:02:49.1]}
8... c6 {[%clk 0:03:04.1]} 9. Be3 {[%clk 0:02:49.8]} 9... b5 {[%clk 0:03:03.9]}
10. dxc6 {[%clk 0:02:50.3]} 10... b4 {[%clk 0:03:04.2]} 11. Nd5 {[%clk
0:02:51.3]} 11... Nxc6 {[%clk 0:03:04.9]} 12. Nd4 {[%clk 0:02:50.9]} 12... Bb7
{[%clk 0:02:59.7]} 13. Nxf6+ {[%clk 0:02:46.6]} 13... Bxf6 {[%clk 0:02:59.8]}
14. f3 {[%clk 0:02:45.9]} 14... d5 {[%clk 0:03:00.2]} 15. exd5 {[%clk
0:02:38.4]} 15... Qxd5 {[%clk 0:02:59.6]} 16. c4 {[%clk 0:02:34.7]} 16... Qe5
{[%clk 0:02:42.7]} 17. Nc2 {[%clk 0:02:29.8]} 17... Rfd8 {[%clk 0:02:38.8]} 18.
Qc1 {[%clk 0:02:29]} 18... Qxb2 {[%clk 0:02:33.3]} 19. Rb1 {[%clk 0:02:27.8]}
19... Qxa2 {[%clk 0:02:17.7]} 20. Rf2 {[%clk 0:02:17.5]} 20... b3 {[%clk
0:02:02.6]} 0-1

[Event "*** Titled Tuesday 3|2 Blitz"]
[Site "Chess.com"]
[Date "2016.09.06"]
[Round "2"]
[White "Rating-Schmating"]
[Black "dusanacns"]
[Result "0-1"]
[WhiteElo "2227"]
[BlackElo "2545"]
[TimeControl "180+2"]
[EndTime "11:18:08 PDT"]
[Termination "dusanacns won by resignation"]

1. e4 {[%clk 0:03:01.9]} 1... g6 {[%clk 0:02:59.3]} 2. Nf3 {[%clk 0:03:02.3]}
2... Bg7 {[%clk 0:03:00.8]} 3. d4 {[%clk 0:03:03.8]} 3... d6 {[%clk 0:03:02.5]}
4. Nc3 {[%clk 0:03:03.7]} 4... Nf6 {[%clk 0:03:03.7]} 5. h3 {[%clk 0:03:04.3]}
5... O-O {[%clk 0:03:05]} 6. Be3 {[%clk 0:03:03.8]} 6... a6 {[%clk 0:03:06.2]}
7. Be2 {[%clk 0:03:05]} 7... b5 {[%clk 0:03:05.3]} 8. a3 {[%clk 0:03:04.8]} 8...
Bb7 {[%clk 0:03:06.6]} 9. e5 {[%clk 0:03:03.5]} 9... Nfd7 {[%clk 0:03:07.1]} 10.
exd6 {[%clk 0:03:03.7]} 10... cxd6 {[%clk 0:03:07.6]} 11. O-O {[%clk 0:03:04.8]}
11... Nc6 {[%clk 0:03:08.8]} 12. d5 {[%clk 0:03:04.1]} 12... Nce5 {[%clk
0:03:09.2]} 13. Nxe5 {[%clk 0:03:05.6]} 13... Nxe5 {[%clk 0:03:10.3]} 14. f4
{[%clk 0:03:06.1]} 14... Nd7 {[%clk 0:03:10.6]} 15. Bd4 {[%clk 0:03:06.7]} 15...
Bxd4+ {[%clk 0:03:09.2]} 16. Qxd4 {[%clk 0:03:07.4]} 16... Qb6 {[%clk
0:03:10.7]} 17. Qxb6 {[%clk 0:03:08.1]} 17... Nxb6 {[%clk 0:03:12.3]} 18. Rad1
{[%clk 0:03:09.4]} 18... Rfc8 {[%clk 0:03:12.6]} 19. Rd4 {[%clk 0:03:08.5]}
19... Rc5 {[%clk 0:03:12.7]} 20. Rfd1 {[%clk 0:03:09.1]} 20... Rac8 {[%clk
0:03:13.3]} 21. Bf3 {[%clk 0:03:09]} 21... Rxc3 {[%clk 0:03:12.5]} 22. bxc3
{[%clk 0:03:08.7]} 22... Rxc3 {[%clk 0:03:14.1]} 23. Re1 {[%clk 0:03:08.8]}
23... Kf8 {[%clk 0:03:13.5]} 24. Rde4 {[%clk 0:03:07.5]} 24... Nxd5 {[%clk
0:02:53.9]} 25. Rd4 {[%clk 0:02:59.6]} 25... e6 {[%clk 0:02:54.7]} 26. Red1
{[%clk 0:02:53.5]} 26... Rxc2 {[%clk 0:02:39.4]} 27. a4 {[%clk 0:02:48.6]} 27...
Ke7 {[%clk 0:02:28.4]} 28. axb5 {[%clk 0:02:48.6]} 28... axb5 {[%clk 0:02:29.8]}
29. Rb1 {[%clk 0:02:48.5]} 29... Nc3 {[%clk 0:02:22.5]} 30. Re1 {[%clk
0:02:12.6]} 30... Bxf3 {[%clk 0:02:19.7]} 31. gxf3 {[%clk 0:02:13.9]} 31... Kd7
{[%clk 0:02:20.4]} 32. Rb4 {[%clk 0:02:14]} 32... Kc6 {[%clk 0:02:18.5]} 33. Re3
{[%clk 0:02:15.1]} 33... Nd5 {[%clk 0:02:18.8]} 34. Reb3 {[%clk 0:02:11.5]}
34... Nxb4 {[%clk 0:02:19.6]} 35. Rxb4 {[%clk 0:02:13.4]} 35... Kc5 {[%clk
0:02:21.1]} 36. Re4 {[%clk 0:02:14.4]} 36... b4 {[%clk 0:02:22.4]} 37. Re2
{[%clk 0:02:15.5]} 37... Rxe2 {[%clk 0:02:22.8]} 0-1

[Event "*** Titled Tuesday 3|2 Blitz"]
[Site "Chess.com"]
[Date "2016.09.06"]
[Round "2"]
[White "RamonManon0g"]
[Black "NTBT_DHS"]
[Result "0-1"]
[WhiteElo "2198"]
[BlackElo "2526"]
[TimeControl "180+2"]
[EndTime "11:19:12 PDT"]
[Termination "NTBT_DHS won by checkmate"]

1. d4 {[%clk 0:03:01.9]} 1... Nf6 {[%clk 0:03:01.1]} 2. c4 {[%clk 0:03:02.7]}
2... g6 {[%clk 0:03:02.5]} 3. Nc3 {[%clk 0:03:03.9]} 3... Bg7 {[%clk 0:03:04]}
4. e4 {[%clk 0:03:05.3]} 4... d6 {[%clk 0:03:05.6]} 5. Nf3 {[%clk 0:03:07]} 5...
O-O {[%clk 0:03:06.9]} 6. Be2 {[%clk 0:03:08.9]} 6... e5 {[%clk 0:03:07.2]} 7.
O-O {[%clk 0:03:10.8]} 7... Nc6 {[%clk 0:03:04.9]} 8. d5 {[%clk 0:03:10.1]} 8...
Ne7 {[%clk 0:03:06.3]} 9. Ne1 {[%clk 0:03:11.4]} 9... Nd7 {[%clk 0:03:06.7]} 10.
Be3 {[%clk 0:03:12.5]} 10... f5 {[%clk 0:03:08.1]} 11. f3 {[%clk 0:03:13.7]}
11... f4 {[%clk 0:03:09.7]} 12. Bf2 {[%clk 0:03:14.9]} 12... g5 {[%clk
0:03:11.3]} 13. a4 {[%clk 0:03:16.1]} 13... Ng6 {[%clk 0:03:04.3]} 14. a5 {[%clk
0:03:15.6]} 14... a6 {[%clk 0:03:05]} 15. c5 {[%clk 0:02:56.9]} 15... Nf6 {[%clk
0:02:29.1]} 16. cxd6 {[%clk 0:02:53.5]} 16... cxd6 {[%clk 0:02:30.5]} 17. Na4
{[%clk 0:02:55.4]} 17... g4 {[%clk 0:02:31.6]} 18. Rc1 {[%clk 0:02:47.8]} 18...
g3 {[%clk 0:02:31.4]} 19. hxg3 {[%clk 0:02:44.1]} 19... fxg3 {[%clk 0:02:32.6]}
20. Bxg3 {[%clk 0:02:33]} 20... Nh5 {[%clk 0:02:33.7]} 21. Bf2 {[%clk
0:02:30.1]} 21... Bh6 {[%clk 0:02:28.3]} 22. Nb6 {[%clk 0:02:26.8]} 22... Bxc1
{[%clk 0:02:22.7]} 23. Qxc1 {[%clk 0:02:27]} 23... Ngf4 {[%clk 0:02:20.4]} 24.
Qd2 {[%clk 0:02:19.3]} 24... Qg5 {[%clk 0:02:20.5]} 25. Kh1 {[%clk 0:01:48.1]}
25... Rf6 {[%clk 0:01:56.5]} 26. g4 {[%clk 0:01:24]} 26... Rh6 {[%clk
0:01:54.5]} 27. Ng2 {[%clk 0:01:01.9]} 27... Ng3+ {[%clk 0:01:53.7]} 28. Kg1
{[%clk 0:01:03.4]} 28... Rh1# {[%clk 0:01:54.6]} 0-1

[Event "*** Titled Tuesday 3|2 Blitz"]
[Site "Chess.com"]
[Date "2016.09.06"]
[Round "2"]
[White "ZapataCharlesS"]
[Black "WinnieTPooh"]
[Result "1-0"]
[WhiteElo "2591"]
[BlackElo "1830"]
[TimeControl "180+2"]
[EndTime "11:19:46 PDT"]
[Termination "ZapataCharlesS won by resignation"]

1. e4 {[%clk 0:03:01.9]} 1... c5 {[%clk 0:03:00.4]} 2. c3 {[%clk 0:03:02.4]}
2... Nf6 {[%clk 0:03:01.3]} 3. e5 {[%clk 0:03:03.6]} 3... Nd5 {[%clk 0:03:02.6]}
4. d4 {[%clk 0:03:04.2]} 4... d6 {[%clk 0:03:03.5]} 5. exd6 {[%clk 0:03:00]}
5... Qxd6 {[%clk 0:03:01.2]} 6. Nf3 {[%clk 0:03:01.6]} 6... Nc6 {[%clk
0:03:01.8]} 7. Be2 {[%clk 0:03:02]} 7... cxd4 {[%clk 0:02:59.4]} 8. cxd4 {[%clk
0:03:02.5]} 8... Bg4 {[%clk 0:02:54.1]} 9. O-O {[%clk 0:03:04.4]} 9... e6 {[%clk
0:02:55]} 10. Qa4 {[%clk 0:03:00.4]} 10... Qb4 {[%clk 0:02:45.8]} 11. Qd1 {[%clk
0:02:46.3]} 11... Bxf3 {[%clk 0:02:37.5]} 12. Bxf3 {[%clk 0:02:43.2]} 12... Qxd4
{[%clk 0:02:38.3]} 13. Qe2 {[%clk 0:02:33.5]} 13... O-O-O {[%clk 0:02:17.7]} 14.
Nc3 {[%clk 0:02:28]} 14... Nxc3 {[%clk 0:02:14.7]} 15. bxc3 {[%clk 0:02:28.4]}
15... Qxc3 {[%clk 0:02:15.5]} 16. Rb1 {[%clk 0:02:30]} 16... Bd6 {[%clk
0:02:07.4]} 17. Be3 {[%clk 0:02:23]} 17... Qe5 {[%clk 0:01:52.6]} 18. g3 {[%clk
0:02:17.6]} 18... Rd7 {[%clk 0:01:52.1]} 19. Bxc6 {[%clk 0:02:11.9]} 19... bxc6
{[%clk 0:01:52.7]} 20. Qa6+ {[%clk 0:02:13.6]} 20... Kd8 {[%clk 0:01:50.5]} 21.
Bf4 {[%clk 0:02:15.2]} 21... Qc5 {[%clk 0:01:22.8]} 22. Rfc1 {[%clk 0:02:12.7]}
22... Qd4 {[%clk 0:00:06.8]} 23. Rd1 {[%clk 0:02:10.7]} 23... Qe4 {[%clk
0:00:06.2]} 24. Bxd6 {[%clk 0:02:07.8]} 24... Rxd6 {[%clk 0:00:06.6]} 25. Rxd6+
{[%clk 0:02:07.9]} 25... Ke7 {[%clk 0:00:07.3]} 26. Rbd1 {[%clk 0:02:08.9]} 1-0

[Event "*** Titled Tuesday 3|2 Blitz"]
[Site "Chess.com"]
[Date "2016.09.06"]
[Round "2"]
[White "mwpchess"]
[Black "DeviatkinAndrey"]
[Result "1/2-1/2"]
[WhiteElo "2449"]
[BlackElo "2604"]
[TimeControl "180+2"]
[EndTime "11:19:52 PDT"]
[Termination "Game drawn by agreement"]

1. e4 {[%clk 0:03:02]} 1... c6 {[%clk 0:02:56.3]} 2. d4 {[%clk 0:03:02]} 2... d5
{[%clk 0:02:57.5]} 3. e5 {[%clk 0:03:03.2]} 3... c5 {[%clk 0:02:57.3]} 4. dxc5
{[%clk 0:03:02.5]} 4... Nc6 {[%clk 0:02:57.5]} 5. Nf3 {[%clk 0:03:02.7]} 5...
Bg4 {[%clk 0:02:58.2]} 6. Bb5 {[%clk 0:02:51]} 6... e6 {[%clk 0:02:57.2]} 7. Be3
{[%clk 0:02:50.7]} 7... Ne7 {[%clk 0:02:49.2]} 8. Bd4 {[%clk 0:02:33.7]} 8...
Nf5 {[%clk 0:02:43.3]} 9. c3 {[%clk 0:02:28.5]} 9... a6 {[%clk 0:02:25.4]} 10.
Bxc6+ {[%clk 0:02:27.9]} 10... bxc6 {[%clk 0:02:26.2]} 11. h3 {[%clk 0:02:17.9]}
11... Bxf3 {[%clk 0:02:25.8]} 12. Qxf3 {[%clk 0:02:18.2]} 12... Rb8 {[%clk
0:02:19.8]} 13. Qe2 {[%clk 0:02:02.8]} 13... Qa5 {[%clk 0:02:00.5]} 14. O-O
{[%clk 0:02:00.5]} 14... Bxc5 {[%clk 0:01:30.2]} 15. Bxc5 {[%clk 0:02:00.8]}
15... Qxc5 {[%clk 0:01:30.9]} 16. Qxa6 {[%clk 0:02:01.3]} 16... O-O {[%clk
0:00:52.6]} 17. b4 {[%clk 0:01:59]} 17... Qb6 {[%clk 0:00:39.4]} 18. Qxb6 {[%clk
0:01:59]} 18... Rxb6 {[%clk 0:00:41]} 19. Nd2 {[%clk 0:01:56.3]} 19... d4 {[%clk
0:00:35.5]} 20. cxd4 {[%clk 0:01:46.3]} 20... Rxb4 {[%clk 0:00:35.8]} 21. Nf3
{[%clk 0:01:43.8]} 21... Nxd4 {[%clk 0:00:36.5]} 22. Nxd4 {[%clk 0:01:43.1]}
22... Rxd4 {[%clk 0:00:38.1]} 23. Rfc1 {[%clk 0:01:41.9]} 23... Ra8 {[%clk
0:00:29.4]} 24. Rxc6 {[%clk 0:01:39.8]} 24... g5 {[%clk 0:00:30.6]} 25. Rcc1
{[%clk 0:01:33.8]} 1/2-1/2